bitfinex/quotes_ETHUSD_20230109
["timestamp","ask_amount","ask_price","bid_price","bid_amount"]
[1673292387289,49.03141649,1333.1,1333.0,0.00406351]
[1673292388009,46.79906198,1333.1,1333.0,0.00406351]
[1673292388216,42.32996508,1333.1,1333.0,0.00406351]
[1673292388815,43.44470092,1333.1,1333.0,0.00406351]
[1673292389282,42.32996508,1333.1,1333.0,0.00406351]
[1673292389757,51.15620634,1333.1,1333.0,0.00406351]
[1673292389972,53.94664947,1333.1,1333.0,0.00406351]
[1673292390650,51.71429496,1333.1,1333.0,0.00406351]
[1673292390812,53.39729496,1333.1,1333.0,0.00406351]
[1673292391277,53.39729496,1333.1,1333.0,4.367e-05]
[1673292393385,53.39648979,1333.1,1333.0,4.367e-05]
[1673292393544,50.60685183,1333.1,1333.0,4.367e-05]
[1673292393757,53.93425535,1333.1,1333.0,4.367e-05]
[1673292396006,53.93425535,1333.1,1332.8,0.00427448]
[1673292396264,33.92871695,1332.9,1332.8,0.00427448]
[1673292396438,36.75277226,1332.9,1332.8,0.00427448]
[1673292396649,42.78234443,1332.9,1332.8,0.00427448]
[1673292396882,45.0195298,1332.9,1332.8,0.00427448]
[1673292397057,46.7095298,1332.9,1332.8,0.00427448]
[1673292397267,49.7095298,1332.9,1332.8,0.00427448]
[1673292402375,49.7095298,1332.9,1332.8,6.26e-05]
[1673292402872,48.0195298,1332.9,1332.8,6.26e-05]
[1673292406208,45.22953361,1332.9,1332.8,6.26e-05]
[1673292406940,48.02072661,1332.9,1332.8,6.26e-05]
[1673292407179,48.55693713,1332.9,1332.8,6.26e-05]
[1673292407411,45.22953361,1332.9,1332.8,6.26e-05]
[1673292409510,45.61410361,1332.9,1332.8,6.26e-05]
[1673292409740,0.0019374,1332.7,1332.6,0.13314247]
[1673292410040,38.63483804,1332.7,1332.6,0.13314247]
[1673292410258,45.36999101,1332.7,1332.6,0.13314247]
[1673292410405,51.16264064,1332.7,1332.6,0.13314247]
[1673292410620,51.16264165,1332.7,1332.6,0.13314247]
[1673292410966,48.36999101,1332.7,1332.6,0.13314247]
[1673292411220,51.16156202,1332.7,1332.6,0.00294472]
[1673292412726,39.18890512,1332.7,1332.6,0.00294472]
[1673292412945,41.42205096,1332.7,1332.6,0.00294472]
[1673292413135,39.73205096,1332.7,1332.6,0.00294472]
[1673292413502,36.94047995,1332.7,1332.6,0.00294472]
[1673292413712,39.73205096,1332.7,1332.6,0.00294472]
[1673292413905,35.93439032,1332.7,1332.6,0.00294472]
[1673292414089,33.14281931,1332.7,1332.6,0.00294472]
[1673292415271,14.44604384,1332.7,1332.6,0.00294472]
[1673292415496,6.94248384,1332.7,1332.6,0.00294472]
[1673292415708,5.60698158,1332.7,1332.6,0.00294472]
[1673292415887,6.72338952,1332.7,1332.6,0.00294472]
[1673292416096,8.05889178,1332.7,1332.6,1.57594472]
[1673292416447,2.04889915,1332.7,1332.6,16.74837919]
[1673292416653,1.98289915,1332.7,1332.6,16.81437919]
[1673292416879,1.98289915,1332.7,1332.6,24.31849919]
[1673292417177,0.0019374,1332.7,1332.6,26.00649919]
[1673292418535,0.0019374,1332.7,1332.6,27.69649919]
[1673292420183,0.0039374,1332.7,1332.6,27.69449919]
[1673292420392,0.0019374,1332.7,1332.6,18.45518472]
[1673292420634,0.0019374,1332.7,1332.6,0.06894472]
[1673292420635,10.29639571,1332.7,1332.6,0.06894472]
[1673292420844,18.78652781,1332.7,1332.6,0.00294472]
[1673292421019,9.60847744,1332.7,1332.6,0.00294472]
[1673292421374,2.10491744,1332.7,1332.6,0.00294472]
[1673292421591,9.54247744,1332.7,1332.6,0.00294472]
[1673292421904,17.11203744,1332.7,1332.6,0.00294472]
[1673292422066,18.78652781,1332.7,1332.6,0.00294472]
[1673292422966,11.28296781,1332.7,1332.6,0.00294472]
[1673292423130,11.28296781,1332.7,1332.6,16.58418472]
[1673292423131,1.18434534,1332.7,1332.6,16.58418472]
[1673292423349,2.03884896,1332.7,1332.6,26.73195519]
[1673292424409,1.11834534,1332.7,1332.6,26.73195519]
[1673292424817,0.0019374,1332.7,1332.6,25.15895519]
[1673292427104,0.0019374,1332.7,1332.6,26.84495519]
[1673292428797,1.11834534,1332.7,1332.6,26.84495519]
[1673292430943,2.03907994,1332.7,1332.6,26.84495519]
[1673292431520,3.71357031,1332.7,1332.6,1.75494472]
[1673292431737,3.71357031,1332.7,1332.4,0.16248429]
[1673292431738,1.68724086,1332.5,1332.4,0.16248429]
[1673292431945,28.10990249,1332.5,1332.4,0.16248429]
[1673292432213,37.71806755,1332.5,1332.4,0.16248429]
[1673292432370,27.42152639,1332.5,1332.4,0.16248429]
[1673292432585,30.21337755,1332.5,1332.4,0.16248429]
[1673292432793,31.5961156,1332.5,1332.4,0.16248429]
[1673292433207,36.0652125,1332.5,1332.4,0.16248429]
[1673292433414,42.87439221,1332.5,1332.1,0.13917957]
[1673292433691,1.11631691,1332.3,1332.1,0.13917957]
[1673292433994,15.01276,1332.2,1332.1,0.13917957]
[1673292434170,15.07876,1332.2,1332.1,0.13917957]
[1673292434738,8.13558,1332.2,1332.1,0.13917957]
[1673292434890,15.64196,1332.2,1332.1,0.13917957]
[1673292435115,0.6292,1332.2,1332.1,0.13917957]
[1673292435331,0.5632,1332.2,1332.1,0.13917957]
[1673292436307,15.57596,1332.2,1332.1,0.13917957]
[1673292436479,23.14834,1332.2,1332.1,0.13917957]
[1673292437110,25.17191533,1332.2,1332.1,0.13917957]
[1673292437423,15.64196,1332.2,1332.1,0.13917957]
[1673292437866,23.14834,1332.2,1332.1,0.13917957]
[1673292438075,15.64196,1332.2,1332.1,0.13917957]
[1673292438282,23.14834,1332.2,1332.1,0.13917957]
[1673292438517,15.64196,1332.2,1332.1,0.13917957]
[1673292438897,0.6292,1332.2,1332.1,0.13917957]
[1673292439107,0.5632,1332.2,1332.1,0.13917957]
[1673292439318,8.06958,1332.2,1332.1,0.13917957]
[1673292439565,15.64196,1332.2,1332.1,0.13917957]
[1673292439920,23.14834,1332.2,1332.1,0.13917957]
[1673292440065,15.64196,1332.2,1332.1,0.13917957]
[1673292440630,23.14834,1332.2,1332.1,0.13917957]
[1673292441748,0.6292,1332.2,1332.1,0.13917957]
[1673292441959,0.5632,1332.2,1332.1,0.13917957]
[1673292443418,22.58437,1332.3,1332.1,1.82517957]
[1673292443419,0.6291,1332.3,1332.1,1.82517957]
[1673292443628,0.5631,1332.3,1332.1,1.82517957]
[1673292444052,16.75623691,1332.4,1332.1,1.82517957]
[1673292444259,8.13442,1332.4,1332.1,4.03473053]
[1673292444475,7.57125,1332.4,1332.2,1.686]
[1673292446632,15.0765,1332.4,1332.2,1.686]
[1673292448364,7.57125,1332.4,1332.2,1.35]
[1673292448618,15.0765,1332.4,1332.2,1.35]
[1673292449035,7.57125,1332.4,1332.2,1.35]
[1673292449240,15.0765,1332.4,1332.2,1.35]
[1673292449452,22.58175,1332.4,1332.2,1.35]
[1673292450676,15.0765,1332.4,1332.2,1.35]
[1673292452724,0.066,1332.4,1332.3,23.85943]
[1673292452918,14.62844086,1332.5,1332.3,23.92543]
[1673292452919,14.69444086,1332.5,1332.3,23.92543]
[1673292454928,14.13144086,1332.5,1332.3,23.92543]
[1673292455261,1.75324086,1332.5,1332.4,42.99941064]
[1673292455405,1.68724086,1332.5,1332.4,47.49497249]
[1673292456241,1.68724086,1332.5,1332.4,43.06916547]
[1673292456667,1.68724086,1332.5,1332.4,43.29916547]
[1673292456882,1.68724086,1332.5,1332.4,53.95074516]
[1673292457134,1.68724086,1332.5,1332.4,50.86462825]
[1673292457563,1.68362205,1332.5,1332.4,50.86462825]
[1673292458987,1.68362205,1332.5,1332.4,55.29362987]
[1673292459821,0.0019374,1332.7,1332.5,3.5]
[1673292460075,0.0019374,1332.7,1332.6,44.51014064]
[1673292460323,0.0019374,1332.7,1332.6,44.57614064]
[1673292460473,0.0019374,1332.7,1332.6,44.60490788]
[1673292463137,0.0019374,1332.7,1332.6,41.90890788]
[1673292465559,0.0019374,1332.7,1332.6,11.89242788]
[1673292466395,0.0019374,1332.7,1332.6,26.90066788]
[1673292466589,0.0019374,1332.7,1332.6,19.39654788]
[1673292466823,0.0019374,1332.7,1332.6,11.89242788]
[1673292467447,0.0019374,1332.7,1332.6,32.46415997]
[1673292467693,0.0019374,1332.7,1332.6,39.96827997]
[1673292468277,0.0019374,1332.7,1332.6,45.73234533]
[1673292468537,0.0019374,1332.7,1332.6,41.54027997]
[1673292468850,0.0019374,1332.7,1332.6,45.96246631]
[1673292469008,0.05866863,1332.9,1332.7,3.5]
[1673292469009,6.03e-06,1332.9,1332.7,3.5]
[1673292469221,11.54966685,1333.1,1332.8,25.79766064]
[1673292469583,11.54966685,1333.1,1332.8,49.72249064]
[1673292469793,11.54966685,1333.1,1332.8,34.71649064]
[1673292470315,11.54966685,1333.1,1332.8,27.21366064]
[1673292470531,11.54966685,1333.1,1332.8,31.57004748]
[1673292471590,19.05125685,1333.1,1332.8,31.57004748]
[1673292472180,0.05,1333.1,1333.0,29.84766064]
[1673292472410,2.29707841,1333.4,1333.1,3.5]
[1673292472411,0.13044458,1333.4,1333.1,3.5]
[1673292472741,0.06444458,1333.4,1333.3,22.0]
[1673292472914,0.06444458,1333.4,1333.3,25.86366064]
[1673292473323,0.06444458,1333.4,1333.3,27.21366064]
[1673292475313,0.06444458,1333.4,1333.3,25.86366064]
[1673292476215,1.62244458,1333.4,1333.3,22.066]
[1673292476369,0.06444458,1333.4,1333.3,22.066]
[1673292480997,1.62244458,1333.4,1333.3,0.066]
[1673292481163,17.73800149,1333.4,1333.1,21.56693]
[1673292481372,25.30362149,1333.4,1333.1,17.86366064]
[1673292482015,24.18730458,1333.4,1333.1,25.36494064]
[1673292482225,24.18730458,1333.4,1333.1,25.36482064]
[1673292482440,25.30362149,1333.4,1333.1,25.36482064]
[1673292483037,25.30362149,1333.4,1333.1,32.86613064]
[1673292483247,24.18730458,1333.4,1333.1,25.36482064]
[1673292483493,24.18730458,1333.4,1333.1,17.86366064]
[1673292483890,25.30362149,1333.4,1333.1,17.86366064]
[1673292484298,25.30362149,1333.4,1333.1,25.36495064]
[1673292484718,17.80400149,1333.4,1333.1,32.86626064]
[1673292484929,17.80400149,1333.4,1333.1,25.36495064]
[1673292486308,17.80400149,1333.4,1333.1,32.86626064]
[1673292486655,19.031357,1333.4,1333.1,32.86626064]
[1673292487672,20.70583237,1333.4,1333.1,32.86626064]
[1673292487884,1.11631691,1333.3,1333.1,0.066]
[1673292488204,23.61856691,1333.2,1332.9,14.066]
[1673292488401,8.68306691,1333.2,1332.9,17.86366064]
[1673292488612,8.68306691,1333.2,1332.9,25.36609064]
[1673292488853,0.066,1333.2,1333.0,7.29766064]
[1673292489087,10.7109,1333.3,1333.1,15.00262]
[1673292489257,10.7109,1333.3,1333.1,18.86628064]
[1673292489480,10.7109,1333.3,1333.1,18.9057326]
[1673292489771,0.6287,1333.3,1333.1,11.4044226]
[1673292490005,0.5627,1333.3,1333.1,11.4044226]
[1673292490510,1.67901691,1333.3,1333.1,11.4044226]
[1673292490712,1.67901691,1333.3,1333.1,18.9057326]
[1673292490962,1.67901691,1333.3,1333.1,11.4044226]
[1673292491178,0.5627,1333.3,1333.1,11.4044226]
[1673292492426,36.7310445,1333.4,1333.2,3.79766064]
[1673292492427,14.7941245,1333.4,1333.2,3.79766064]
[1673292492634,14.7941245,1333.4,1333.3,26.29820064]
[1673292492635,1.24676149,1333.4,1333.3,26.29820064]
[1673292492850,1.18076149,1333.4,1333.3,18.86402064]
[1673292493162,1.8986208,1333.4,1333.3,18.86402064]
[1673292493403,3.57309617,1333.4,1333.3,18.86402064]
[1673292493547,3.57309617,1333.4,1333.3,26.36420064]
[1673292494444,2.45677926,1333.4,1333.3,26.36420064]
[1673292494773,9.95639926,1333.4,1333.3,0.066]
[1673292494917,5.31801309,1333.4,1333.2,7.50054]
[1673292495135,1.83322514,1333.3,1333.2,7.56654]
[1673292496604,1.83522514,1333.3,1333.2,7.56454]
[1673292496811,1.83322514,1333.3,1333.2,7.56654]
[1673292498224,3.50770051,1333.3,1333.2,15.06729]
[1673292498387,3.50770051,1333.3,1333.2,7.56654]
[1673292499218,1.83322514,1333.3,1333.2,15.06729]
[1673292499437,3.50770051,1333.3,1333.2,7.56654]
[1673292500301,3.50770051,1333.3,1333.2,15.06729]
[1673292500919,3.50770051,1333.3,1333.2,7.56654]
[1673292501120,3.50770051,1333.3,1333.2,7.56359741]
[1673292502319,1.83322514,1333.3,1333.2,22.56509741]
[1673292502532,2.92028578,1333.4,1333.2,33.49466226]
[1673292502848,2.85428578,1333.4,1333.3,22.29802064]
[1673292502999,3.57274672,1333.4,1333.3,22.36402064]
[1673292503213,3.57274672,1333.4,1333.3,18.86402064]
[1673292503658,3.57274672,1333.4,1333.3,26.36420064]
[1673292504091,3.57474672,1333.4,1333.3,26.36220064]
[1673292504303,2.45738089,1333.4,1333.3,26.36420064]
[1673292504947,1.89976219,1333.4,1333.3,44.5011432]
[1673292505160,3.9731092,1333.5,1333.4,3.5]
[1673292505161,0.066,1333.5,1333.4,3.5]
[1673292505313,2.29707841,1333.6,1333.4,29.79652064]
[1673292505314,0.06444458,1333.6,1333.4,29.79652064]
[1673292505528,0.06444458,1333.6,1333.5,3.79766064]
[1673292505775,0.06444458,1333.6,1333.5,27.98282476]
[1673292505964,0.06444458,1333.6,1333.5,28.04882476]
[1673292506915,0.06444458,1333.6,1333.5,20.54976476]
[1673292507100,2.29707841,1333.6,1333.5,20.54976476]
[1673292507310,0.06444458,1333.6,1333.5,20.54976476]
[1673292507554,2.29707841,1333.6,1333.5,20.54976476]
[1673292507884,2.29707841,1333.6,1333.5,35.54788476]
[1673292508792,2.29707841,1333.6,1333.5,28.04882476]
[1673292509632,0.06444458,1333.6,1333.5,28.04882476]
[1673292509861,0.06444458,1333.6,1333.5,43.04694476]
[1673292511236,0.06444458,1333.6,1333.5,44.38894476]
[1673292515128,1.18092696,1333.6,1333.5,44.38894476]
[1673292515347,2.85605747,1333.6,1333.5,44.38894476]
[1673292516352,10.35455747,1333.6,1333.5,14.066]
[1673292516598,1.80557509,1333.6,1333.5,14.066]
[1673292516937,1.73957509,1333.6,1333.5,14.066]
[1673292517453,2.85600001,1333.6,1333.5,14.066]
[1673292517620,2.85600603,1333.6,1333.5,14.066]
[1673292517818,1.73957509,1333.6,1333.5,14.066]
[1673292518033,2.85600496,1333.6,1333.5,14.066]
[1673292518239,2.77719498,1333.6,1333.5,14.066]
[1673292520758,5.00982881,1333.6,1333.5,14.066]
[1673292521021,5.07582881,1333.6,1333.5,0.066]
[1673292521189,5.07582881,1333.6,1333.4,22.56999902]
[1673292521399,1.11637278,1333.5,1333.4,11.36877966]
[1673292521632,1.11637278,1333.5,1333.4,26.36801966]
[1673292522018,2.79150329,1333.5,1333.4,26.36801966]
[1673292522460,2.79150329,1333.5,1333.4,26.36230064]
[1673292523107,2.79150329,1333.5,1333.4,0.066]
[1673292523274,11.40682434,1333.5,1333.3,0.066]
[1673292523490,1.11623227,1333.4,1333.3,3.79766064]
[1673292524360,2.79136278,1333.4,1333.3,3.79766064]
[1673292524546,10.29098278,1333.4,1333.3,3.79766064]
[1673292524758,2.85736278,1333.4,1333.3,3.79766064]
[1673292525125,3.2437443,1333.4,1333.3,3.79766064]
[1673292525436,10.7433643,1333.4,1333.3,3.79766064]
[1673292525592,3.3097443,1333.4,1333.3,3.79766064]
[1673292525803,19.35938586,1333.4,1333.2,0.066]
[1673292526058,16.56927618,1333.3,1333.2,3.79766064]
[1673292526267,18.31040669,1333.3,1333.2,3.79766064]
[1673292526871,1.63491618,1333.3,1333.2,11.29841064]
[1673292527080,1.56891618,1333.3,1333.2,11.36441064]
[1673292527284,1.56891618,1333.3,1333.2,3.86366064]
[1673292527491,1.56891618,1333.3,1333.2,3.79766064]
[1673292527955,9.06909618,1333.3,1333.2,3.79766064]
[1673292528169,9.13509618,1333.3,1333.2,3.79766064]
[1673292528396,2.33511895,1333.3,1333.2,3.79766064]
[1673292528561,3.94424946,1333.3,1333.2,3.79766064]
[1673292529611,2.26911895,1333.3,1333.2,11.29841064]
[1673292529855,2.26911895,1333.3,1333.2,3.86366064]
[1673292530011,2.26911895,1333.3,1333.2,3.79766064]
[1673292530227,9.76929895,1333.3,1333.2,3.79766064]
[1673292530434,11.51042946,1333.3,1333.2,3.79766064]
[1673292532377,4.01024946,1333.3,1333.2,3.79766064]
[1673292532554,3.94424946,1333.3,1333.2,3.79766064]
[1673292533322,3.94424946,1333.3,1333.2,11.29841064]
[1673292533541,3.94424946,1333.3,1333.2,3.86366064]
[1673292533851,2.26911895,1333.3,1333.2,3.79766064]
[1673292534657,3.94424946,1333.3,1333.2,3.79766064]
[1673292535003,2.26911895,1333.3,1333.2,3.79766064]
[1673292535395,2.26911895,1333.3,1333.2,11.29841064]
[1673292535739,2.26911895,1333.3,1333.2,6.5003177]
[1673292535953,1.81673743,1333.3,1333.2,14.0010677]
[1673292536320,2.26970185,1333.3,1333.2,14.0010677]
[1673292536526,1.81673743,1333.3,1333.2,14.0010677]
[1673292536796,2.26974505,1333.3,1333.2,14.0010677]
[1673292537003,2.26974505,1333.3,1333.2,28.0010677]
[1673292537211,1.81673743,1333.3,1333.2,50.5033177]
[1673292537528,0.70020277,1333.3,1333.2,50.5033177]
[1673292538243,2.79166517,1333.4,1333.2,50.5033177]
[1673292538467,3.2446951,1333.4,1333.3,7.29766064]
[1673292538631,3.2446951,1333.4,1333.3,29.86420064]
[1673292539174,3.2446951,1333.4,1333.3,35.26436141]
[1673292539387,2.29863383,1333.5,1333.3,35.26436141]
[1673292539388,2.85766517,1333.5,1333.3,35.26436141]
[1673292539608,2.79166517,1333.5,1333.4,21.29766064]
[1673292539840,2.12822516,1333.5,1333.4,43.86252064]
[1673292541409,2.12822516,1333.5,1333.4,40.36252064]
[1673292541795,2.12822516,1333.5,1333.4,17.86366064]
[1673292542014,18.46077541,1333.5,1333.4,14.066]
[1673292542221,2.75172848,1333.5,1333.4,14.066]
[1673292542439,2.68572848,1333.5,1333.4,14.066]
[1673292543492,2.68572848,1333.5,1333.4,21.56562]
[1673292543686,2.68572848,1333.5,1333.4,14.066]
[1673292545042,5.47757964,1333.5,1333.4,0.066]
[1673292545302,5.47757964,1333.5,1333.4,7.49962]
[1673292545303,5.54357964,1333.5,1333.4,7.49962]
[1673292545480,5.54357964,1333.5,1333.4,7.56562]
[1673292546034,2.75172848,1333.5,1333.4,22.56486]
[1673292546193,2.68572848,1333.5,1333.4,22.56486]
[1673292546413,2.68572848,1333.5,1333.4,15.06524]
[1673292547072,5.47757964,1333.5,1333.4,15.06524]
[1673292547282,5.54357964,1333.5,1333.4,7.56562]
[1673292547613,27.15812581,1333.5,1333.4,0.066]
[1673292547779,28.38800163,1333.5,1333.1,0.066]
[1673292548155,2.79566918,1333.3,1333.1,3.79766064]
[1673292548367,3.24876383,1333.3,1333.1,3.79766064]
[1673292548664,2.79566918,1333.3,1333.1,11.29894064]
[1673292548869,3.1265822,1333.3,1333.1,26.36756064]
[1673292549083,1.11826767,1333.3,1333.1,26.36756064]
[1673292549398,1.4491773,1333.3,1333.1,26.36756064]
[1673292549574,1.4491773,1333.3,1333.1,30.58954701]
[1673292552461,3.12657881,1333.3,1333.1,30.58954701]
[1673292554715,2.79566918,1333.3,1333.1,30.58954701]
[1673292554918,3.12686935,1333.3,1333.1,30.58954701]
[1673292556010,3.12686935,1333.3,1333.2,17.79766064]
[1673292556179,3.12686935,1333.3,1333.2,44.82486534]
[1673292557149,1.44946784,1333.3,1333.2,44.82486534]
[1673292557593,3.12686935,1333.3,1333.2,44.82486534]
[1673292558200,3.12686935,1333.3,1333.2,36.56825]
[1673292558424,4.47305133,1333.3,1333.2,0.066]
[1673292558613,23.59542942,1333.3,1332.9,0.066]
[1673292558820,1.11999276,1333.0,1332.8,14.18889426]
[1673292559242,2.01399293,1333.0,1332.8,14.18889426]
[1673292559596,1.68279276,1333.0,1332.8,14.18889426]
[1673292559757,1.11999276,1333.0,1332.8,14.18889426]
[1673292559967,1.46937227,1333.0,1332.8,17.68889426]
[1673292560417,1.46937227,1333.0,1332.8,25.19178426]
[1673292560638,1.46937227,1333.0,1332.8,29.6738855]
[1673292561024,1.46937227,1333.0,1332.8,15.55099124]
[1673292561236,1.46937227,1333.0,1332.8,8.04810124]
[1673292561447,1.46937227,1333.0,1332.9,3.79766064]
[1673292562024,1.4693731,1333.0,1332.9,3.79766064]
[1673292565289,1.11999276,1333.0,1332.9,3.79766064]
[1673292565502,15.1955819,1333.1,1332.9,26.30495064]
[1673292565736,14.6327819,1333.1,1332.9,26.37095064]
[1673292565938,12.95279276,1333.1,1332.9,26.37095064]
[1673292566089,12.95279276,1333.1,1332.9,11.36609064]
[1673292566465,14.6327819,1333.1,1332.9,3.86166064]
[1673292566637,12.95279276,1333.1,1332.9,3.79766064]
[1673292567054,14.6327819,1333.1,1332.9,3.79766064]
[1673292567262,14.6327819,1333.1,1332.9,11.30000064]
[1673292567510,14.6327819,1333.1,1332.9,3.86366064]
[1673292567672,14.6327819,1333.1,1332.9,3.79766064]
[1673292568136,15.86265772,1333.1,1332.9,3.79766064]
[1673292569183,0.05,1333.0,1332.9,3.79766064]
[1673292569532,15.86265772,1333.1,1332.9,3.79766064]
[1673292569822,23.36410772,1333.1,1332.9,3.79766064]
[1673292570186,15.86265772,1333.1,1332.9,3.79766064]
[1673292571356,22.1341319,1333.1,1332.9,3.79766064]
[1673292571711,23.36400772,1333.1,1332.9,3.79766064]
[1673292572925,15.86265772,1333.1,1332.9,11.30008064]
[1673292573154,15.86265772,1333.1,1332.9,11.36608064]
[1673292573759,15.86265772,1333.1,1332.9,3.86366064]
[1673292573972,29.6356219,1333.1,1332.9,3.79766064]
[1673292574185,30.86549772,1333.1,1332.9,3.79766064]
[1673292574651,1.11999276,1333.0,1332.9,3.79766064]
[1673292574863,2.58872006,1333.0,1332.8,14.066]
[1673292575021,9.17944371,1332.9,1332.8,14.066]
[1673292575231,10.71219058,1332.9,1332.8,14.066]
[1673292575449,3.20976058,1332.9,1332.8,14.066]
[1673292575647,3.14376058,1332.9,1332.8,14.066]
[1673292576327,3.14376058,1332.9,1332.8,0.066]
[1673292576328,2.02574825,1332.9,1332.8,0.066]
[1673292576522,2.02574825,1332.9,1332.6,0.18516752]
[1673292576736,1.11741088,1332.8,1332.7,3.79766064]
[1673292577122,1.11741088,1332.8,1332.7,11.30122064]
[1673292577333,2.79442459,1332.9,1332.7,11.36722064]
[1673292577565,3.14301299,1332.9,1332.7,11.36722064]
[1673292578226,3.14301299,1332.9,1332.7,26.37434064]
[1673292579156,1.46599928,1332.9,1332.7,26.37434064]
[1673292579363,1.11741088,1332.9,1332.7,26.37434064]
[1673292579699,1.46589425,1332.9,1332.7,26.37434064]
[1673292580381,1.11741088,1332.9,1332.7,26.37434064]
[1673292580592,16.17040041,1333.0,1332.7,26.37434064]
[1673292580825,13.26351088,1333.0,1332.8,3.79766064]
[1673292581068,13.26351088,1333.0,1332.9,3.79766064]
[1673292581069,10.2333,1333.0,1332.9,3.79766064]
[1673292581236,10.2333,1333.0,1332.9,26.30495064]
[1673292581433,10.2333,1333.0,1332.9,26.37095064]
[1673292581649,0.066,1333.0,1332.9,26.37095064]
[1673292581880,13.51301088,1333.1,1332.9,27.77976153]
[1673292582129,0.066,1333.1,1333.0,3.79766064]
[1673292582339,23.03061088,1333.3,1333.0,32.30038029]
[1673292582555,12.76901088,1333.3,1333.2,3.5]
[1673292582871,1.53191817,1333.3,1333.1,40.39703773]
[1673292583051,1.11741088,1333.3,1333.1,44.5717415]
[1673292583267,1.46594668,1333.3,1333.1,44.5717415]
[1673292583651,1.11741088,1333.3,1333.2,7.29766064]
[1673292583861,1.11741088,1333.3,1333.2,26.36591064]
[1673292584117,1.11741088,1333.3,1333.2,31.70705579]
[1673292584439,1.11741088,1333.3,1333.2,24.20630579]
[1673292584668,1.11741088,1333.3,1333.2,31.70705579]
[1673292584813,1.11741088,1333.3,1333.2,24.20630579]
[1673292585488,1.11741088,1333.3,1333.2,18.86288565]
[1673292586320,1.11741088,1333.3,1333.2,26.36363565]
[1673292587438,1.46580617,1333.3,1333.2,26.36363565]
[1673292588103,3.14281988,1333.3,1333.2,26.36363565]
[1673292588697,3.14281988,1333.3,1333.2,18.86288565]
[1673292588954,3.14281988,1333.3,1333.2,3.86138565]
[1673292589124,19.26575452,1333.3,1333.1,14.066]
[1673292589341,4.59685683,1333.2,1333.1,17.86366064]
[1673292589554,4.59685683,1333.2,1333.1,0.066]
[1673292589800,6.27387054,1333.2,1333.0,7.50184]
[1673292589956,5.99147525,1333.2,1333.0,18.86737064]
[1673292590326,1.11746154,1333.1,1333.0,11.36550064]
[1673292590635,1.11746154,1333.1,1333.0,3.86366064]
[1673292590862,1.11746154,1333.1,1333.0,3.79766064]
[1673292591439,1.11746154,1333.1,1333.0,11.29953064]
[1673292591648,1.11746154,1333.1,1333.0,3.86366064]
[1673292591895,1.11746154,1333.1,1333.0,11.29953064]
[1673292592166,1.46590922,1333.1,1333.0,11.36553064]
[1673292593012,6.73746753,1333.2,1333.0,11.36553064]
[1673292593275,1.11746154,1333.1,1333.0,11.36553064]
[1673292593850,0.05,1333.1,1333.0,11.36553064]
[1673292594064,13.28435525,1333.2,1333.0,3.86366064]
[1673292594286,13.28435525,1333.2,1333.0,3.79766064]
[1673292594287,1.11746154,1333.1,1333.0,3.79766064]
[1673292594820,16.4685537,1333.1,1332.9,0.066]
[1673292595033,16.4685537,1333.1,1332.8,3.02439048]
[1673292595034,4.21047525,1333.1,1332.8,3.02439048]
[1673292595265,1.11746154,1333.0,1332.8,3.82205112]
[1673292595586,1.11746154,1333.0,1332.9,14.0]
[1673292595749,23.03152525,1333.1,1332.9,14.066]
[1673292595963,1.11746154,1333.0,1332.9,14.066]
[1673292597016,1.11746154,1333.0,1332.9,0.066]
[1673292597017,1.46619855,1333.0,1332.9,0.066]
[1673292597235,26.99682226,1333.0,1332.7,17.066]
[1673292597431,20.16620753,1333.0,1332.7,28.36717064]
[1673292597635,11.71034525,1333.0,1332.7,28.36717064]
[1673292597851,11.71034525,1333.0,1332.7,35.87073064]
[1673292598317,10.03333154,1333.0,1332.7,43.37429064]
[1673292598629,2.53146154,1333.0,1332.7,43.37429064]
[1673292598826,2.46546154,1333.0,1332.7,43.37429064]
[1673292599893,2.46546154,1333.0,1332.7,40.37429064]
[1673292600425,3.41945382,1333.0,1332.7,40.37429064]
[1673292600729,3.42029254,1333.0,1332.7,40.37429064]
[1673292601529,12.59920625,1333.0,1332.7,40.37429064]
[1673292601738,5.16330625,1333.0,1332.7,40.37429064]
[1673292601992,3.48629254,1333.0,1332.7,40.37429064]
[1673292602178,3.42029254,1333.0,1332.7,40.37429064]
[1673292602521,4.14247525,1333.0,1332.7,17.86366064]
[1673292602737,0.43516473,1332.9,1332.7,14.066]
[1673292603041,15.44033473,1332.9,1332.7,14.066]
[1673292603369,15.50633473,1332.9,1332.7,14.066]
[1673292603745,0.50116473,1332.9,1332.7,40.37429064]
[1673292603981,0.43516473,1332.9,1332.7,40.37429064]
[1673292605559,0.43516473,1332.9,1332.8,3.79766064]
[1673292605739,0.43516473,1332.9,1332.8,7.29766064]
[1673292605950,0.43516473,1332.9,1332.8,7.36366064]
[1673292606499,32.44570525,1333.1,1332.8,3.86366064]
[1673292606702,1.11746154,1333.0,1332.9,3.79766064]
[1673292607370,33.43495011,1333.1,1332.9,3.79766064]
[1673292607564,1.11746154,1333.0,1332.9,3.79766064]
[1673292608436,1.11746154,1333.0,1332.8,0.066]
[1673292608437,1.5125291,1333.0,1332.8,0.066]
[1673292608648,1.5125291,1333.0,1332.7,14.066]
[1673292608649,24.0181391,1333.0,1332.7,14.066]
[1673292608868,26.35553526,1333.0,1332.7,17.86366064]
[1673292609172,7.503,1332.8,1332.7,0.066]
[1673292609384,7.569,1332.8,1332.6,0.11916752]
[1673292609561,7.569,1332.8,1332.6,6.91682816]
[1673292609906,0.066,1332.8,1332.6,10.48282816]
[1673292610119,16.12288154,1332.9,1332.6,10.48282816]
[1673292610120,16.18888154,1332.9,1332.6,10.48282816]
[1673292610444,23.69165154,1332.9,1332.6,10.43282816]
[1673292611238,23.69165154,1332.9,1332.7,3.5]
[1673292611462,16.18888154,1332.9,1332.7,17.5]
[1673292611662,16.18888154,1332.9,1332.7,17.566]
[1673292611875,23.69158154,1332.9,1332.7,17.566]
[1673292612321,23.69158154,1332.9,1332.7,14.066]
[1673292613173,23.69158154,1332.9,1332.7,17.566]
[1673292613993,23.69158154,1332.9,1332.7,14.066]
[1673292614214,23.69158154,1332.9,1332.7,0.066]
[1673292614402,23.69158154,1332.9,1332.6,7.45117838]
[1673292614582,7.50325,1332.8,1332.6,7.45117838]
[1673292614797,7.56925,1332.8,1332.6,7.45117838]
[1673292615393,27.22453612,1332.8,1332.6,0.13516752]
[1673292615577,27.70859199,1332.8,1332.6,0.06916752]
[1673292615903,37.69387828,1332.8,1332.6,0.06916752]
[1673292616059,36.70526154,1332.8,1332.6,14.06916752]
[1673292616270,12.84576154,1332.8,1332.6,29.14297752]
[1673292616479,12.84576154,1332.8,1332.6,21.63891752]
[1673292616741,11.7283,1332.8,1332.6,14.13516752]
[1673292616934,11.7283,1332.8,1332.6,21.63927752]